fUST/lending_fUST_20250906
["ID","MTS","AMOUNT","RATE_DAILY","PERIOD"]
[383865409,1757147456226,-481.77219081,0.00014246,2]
[383865410,1757147456236,-480.0,0.00014246,2]
[383865411,1757147456246,-480.0,0.00014246,2]
[383865412,1757147456255,-483.09089622,0.00014246,2]
[383865413,1757147456265,-1913.46,0.00014246,2]
[383865414,1757147456276,-480.0,0.00014246,2]
[383865415,1757147456285,-252.0223145,0.00014246,2]
[383865416,1757147456294,-169.65169956,0.00014246,2]
[383865417,1757147456304,-578.72,0.00014246,2]
[383865418,1757147456313,-480.0,0.00014246,2]
[383865419,1757147456323,-480.0,0.00014246,2]
[383865420,1757147456332,-480.0,0.00014246,2]
[383865421,1757147456342,-18575.91,0.00014246,2]
[383865422,1757147456351,-1101.67,0.00014246,2]
[383865423,1757147456360,-508.99,0.00014246,2]
[383865424,1757147456369,-480.0,0.00014246,2]
[383865425,1757147456379,-480.0,0.00014246,2]
[383865426,1757147456388,-480.0,0.00014246,2]
[383865427,1757147456397,-151.0,0.00014246,2]
[383865428,1757147456406,-480.0,0.00014246,2]
[383865429,1757147456415,-891.07,0.00014246,2]
[383865430,1757147456424,-480.0,0.00014246,2]
[383865431,1757147456433,-480.0,0.00014246,2]
[383865432,1757147456443,-705.71,0.00014246,2]
[383865433,1757147456452,-480.0,0.00014246,2]
[383865434,1757147456461,-480.0,0.00014246,2]
[383865435,1757147456470,-536.6,0.00014246,2]
[383865436,1757147456480,-480.0,0.00014246,2]
[383865437,1757147456489,-480.0,0.00014246,2]
[383865438,1757147456498,-2032.48,0.00014246,2]
[383865439,1757147456508,-1902.79,0.00014246,2]
[383865440,1757147456517,-492.33394045,0.00014246,2]
[383865441,1757147456527,-480.0,0.00014246,2]
[383865442,1757147456536,-736.13,0.00014246,2]
[383865443,1757147456545,-484.52643837,0.00014246,2]
[383865444,1757147456555,-480.0,0.00014246,2]
[383865445,1757147456564,-480.0,0.00014246,2]
[383865446,1757147456574,-423.96133848,0.00014246,2]
[383865447,1757147456583,-480.0,0.00014246,2]
[383865448,1757147456593,-480.0,0.00014246,2]
[383865449,1757147456603,-480.0,0.00014246,2]
[383865450,1757147456612,-480.0,0.00014246,2]
[383865451,1757147456621,-480.0,0.00014246,2]
[383865452,1757147456630,-1683.86,0.00014246,2]
[383865453,1757147456639,-1314.45,0.00014246,2]
[383865454,1757147456649,-480.0,0.00014246,2]
[383865455,1757147456659,-480.0,0.00014246,2]
[383865456,1757147456668,-480.0,0.00014246,2]
[383865457,1757147456678,-276.00981847,0.00014246,2]
[383865458,1757147456687,-280.09,0.00014246,2]
[383865459,1757147456697,-566.47,0.00014246,2]
[383865460,1757147456707,-480.0,0.00014246,2]
[383865461,1757147456716,-480.0,0.00014246,2]
[383865462,1757147456726,-480.0,0.00014246,2]
[383865463,1757147456735,-1483.04,0.00014246,2]
[383865464,1757147456745,-480.0,0.00014246,2]
[383865465,1757147456758,-480.0,0.00014246,2]
[383865466,1757147456768,-480.0,0.00014246,2]
[383865467,1757147456777,-706.69,0.00014246,2]
[383865468,1757147456914,-480.0,0.00014246,2]
[383865469,1757147456924,-480.0,0.00014246,2]
[383865470,1757147456934,-623.43,0.00014246,2]
[383865471,1757147456943,-480.0,0.00014246,2]
[383865472,1757147456952,-542.6,0.00014246,2]
[383865473,1757147456962,-2151.3,0.00014246,2]
[383865474,1757147456972,-480.0,0.00014246,2]
[383865475,1757147456982,-480.0,0.00014246,2]
[383865476,1757147456991,-480.0,0.00014246,2]
[383865477,1757147457001,-551.18,0.00014246,2]
[383865478,1757147457011,-485.98391718,0.00014246,2]
[383865479,1757147457020,-480.0,0.00014246,2]
[383865480,1757147457030,-480.0,0.00014246,2]
[383865481,1757147457040,-9235.82,0.00014246,2]
[383865482,1757147457050,-627.12,0.00014246,2]
[383865483,1757147457059,-901.55,0.00014246,2]
[383865484,1757147457069,-6620.36,0.00014246,2]
[383865485,1757147457079,-480.0,0.00014246,2]
[383865486,1757147457088,-480.0,0.00014246,2]
[383865487,1757147457097,-480.0,0.00014246,2]
[383865488,1757147457107,-480.0,0.00014246,2]
[383865489,1757147457116,-480.0,0.00014246,2]
[383865490,1757147457126,-480.0,0.00014246,2]
[383865491,1757147457135,-480.0,0.00014246,2]
[383865492,1757147457144,-480.0,0.00014246,2]
[383865493,1757147457154,-151.0,0.00014246,2]
[383865494,1757147457163,-480.0,0.00014246,2]
[383865495,1757147457173,-480.0,0.00014246,2]
[383865496,1757147457183,-155.149743,0.00014246,2]
[383865497,1757147457192,-151.0,0.00014246,2]
[383865498,1757147457202,-481.61196086,0.00014246,2]
[383865499,1757147457211,-480.0,0.00014246,2]
[383865500,1757147457220,-743.595002,0.00014246,2]
[383865501,1757147457230,-151.0,0.00014246,2]
[383865502,1757147457239,-480.0,0.00014246,2]
[383865503,1757147457249,-743.595002,0.00014246,2]
[383865504,1757147457258,-151.0,0.00014246,2]
[383865505,1757147457268,-447.56591919,0.00014256,2]
[383865506,1757147457279,-10572.35515662,0.00014274,2]
[383865507,1757147457288,-151.0,0.00014274,2]
[383865508,1757147457298,-151.0,0.00014274,2]
[383865509,1757147457308,-151.0,0.00014274,2]
[383865510,1757147457317,-151.0,0.00014274,2]
[383865511,1757147457326,-156.933598,0.00014274,2]
[383865512,1757147457335,-151.0,0.00014274,2]
[383865513,1757147457345,-161.556233,0.00014274,2]
[383865514,1757147457355,-151.0,0.00014274,2]
[383865515,1757147457364,-257.319223,0.00014274,2]
[383865516,1757147457373,-543.298905,0.00014337,2]
[383865517,1757147457382,-543.298905,0.00014337,2]
[383865518,1757147457392,-543.298905,0.00014337,2]
[383865519,1757147457401,-543.298905,0.00014337,2]
[383865520,1757147457410,-318.879953,0.00014337,2]
[383865521,1757147457420,-318.879953,0.00014337,2]
[383865522,1757147457430,-318.879953,0.00014337,2]
[383865523,1757147457439,-318.879953,0.00014337,2]
[383865524,1757147457448,-2187.07714827,0.00014337,2]
[383865525,1757147457457,-420.0,0.00014395,2]
[383865526,1757147457466,-43258.66817124,0.0001442,2]
[383865527,1757147457477,-151.0,0.0001442,2]
[383865528,1757147457487,-534.0,0.0001444,2]
[383865529,1757147457496,-158.15064,0.00014441,2]
[383865530,1757147457506,-151.0,0.00014441,2]
[383865531,1757147457516,-151.0,0.00014441,2]
[383865532,1757147457527,-978.257,0.00014469,2]
[383865533,1757147457537,-634.0,0.00014469,2]
[383865534,1757147457547,-2154.0,0.00014469,2]
[383865535,1757147457557,-409.0,0.00014469,2]
[383865536,1757147457566,-480.0,0.0001452,2]
[383865537,1757147457575,-480.0,0.0001452,2]
[383865538,1757147457585,-480.0,0.0001452,2]
[383865539,1757147457595,-678.99,0.0001452,2]
[383865540,1757147457604,-480.0,0.0001452,2]
[383865541,1757147457613,-345.5243182,0.0001452,2]
[383865542,1757147457623,-480.0,0.0001452,2]
[383865543,1757147457637,-480.0,0.0001452,2]
[383865544,1757147457646,-153.197403,0.0001452,2]
[383865545,1757147457657,-153.09874,0.0001452,2]
[383865546,1757147457666,-151.0,0.0001452,2]
[383865547,1757147457675,-487.74878256,0.0001452,2]
[383865548,1757147457684,-172.14938165,0.0001452,2]
[383865549,1757147457694,-480.0,0.0001452,2]
[383865550,1757147457705,-151.0,0.0001452,2]
[383865551,1757147457715,-151.0,0.0001452,2]
[383865552,1757147457725,-480.0,0.0001452,2]
[383865553,1757147457734,-480.0,0.0001452,2]
[383865554,1757147457744,-480.0,0.0001452,2]
[383865555,1757147457757,-480.0,0.0001452,2]
[383865556,1757147457767,-258.80036864,0.0001452,2]
[383865557,1757147457777,-734.04,0.0001452,2]
[383865558,1757147457786,-151.0,0.0001452,2]
[383865559,1757147457797,-153.599644,0.0001452,2]
[383865560,1757147457807,-151.0,0.0001452,2]
[383865561,1757147457816,-480.0,0.0001452,2]
[383865562,1757147457825,-480.0,0.0001452,2]
[383865563,1757147457836,-480.0,0.0001452,2]
[383865564,1757147457846,-815.17,0.0001452,2]
[383865565,1757147457855,-480.0,0.0001452,2]
[383865566,1757147457864,-480.0,0.0001452,2]
[383865567,1757147457875,-480.0,0.0001452,2]
[383865568,1757147457885,-480.0,0.0001452,2]
[383865569,1757147457894,-480.0,0.0001452,2]
[383865570,1757147457903,-480.0,0.0001452,2]
[383865571,1757147457913,-480.0,0.0001452,2]
[383865572,1757147457925,-480.0,0.0001452,2]
[383865573,1757147457934,-480.0,0.0001452,2]
[383865574,1757147457944,-480.0,0.0001452,2]
[383865575,1757147457954,-482.05078182,0.0001452,2]
[383865576,1757147457964,-480.0,0.0001452,2]
[383865577,1757147457973,-151.0,0.0001452,2]
[383865578,1757147457982,-151.0,0.0001452,2]
[383865579,1757147457991,-260.18,0.0001452,2]
[383865580,1757147458001,-480.0,0.0001452,2]
[383865581,1757147458010,-480.0,0.0001452,2]
[383865582,1757147458020,-490.74660107,0.0001452,2]
[383865583,1757147458029,-480.0,0.0001452,2]
[383865584,1757147458039,-480.0,0.0001452,2]
[383865585,1757147458048,-480.0,0.0001452,2]
[383865586,1757147458058,-480.0,0.0001452,2]
[383865587,1757147458067,-480.0,0.0001452,2]
[383865588,1757147458076,-1295.7,0.0001452,2]
[383865589,1757147458086,-156.328558,0.0001452,2]
[383865590,1757147458096,-480.0,0.0001452,2]
[383865591,1757147458106,-484.31656726,0.0001452,2]
[383865592,1757147458115,-156.328558,0.0001452,2]
[383865593,1757147458124,-480.0,0.0001452,2]
[383865594,1757147458133,-156.328558,0.0001452,2]
[383865595,1757147458147,-480.0,0.0001452,2]
[383865596,1757147458162,-156.328558,0.0001452,2]
[383865597,1757147458177,-480.0,0.0001452,2]
[383865598,1757147458189,-480.0,0.0001452,2]
[383865599,1757147458202,-480.0,0.0001452,2]
[383865600,1757147458216,-480.0,0.0001452,2]
[383865601,1757147458229,-480.0,0.0001452,2]
[383865602,1757147458244,-480.0,0.0001452,2]
[383865603,1757147458257,-151.0,0.0001452,2]
[383865604,1757147458272,-480.0,0.0001452,2]
[383865605,1757147458286,-480.0,0.0001452,2]
[383865606,1757147458299,-152.106696,0.0001452,2]
[383865607,1757147458311,-481.81926554,0.0001452,2]
[383865608,1757147458323,-395.333293,0.0001452,2]
[383865609,1757147458338,-151.0,0.0001452,2]
[383865610,1757147458351,-395.333293,0.0001452,2]
[383865611,1757147458363,-151.0,0.0001452,2]
[383865612,1757147458374,-395.333293,0.0001452,2]
[383865613,1757147458386,-480.0,0.0001452,2]
[383865614,1757147458399,-480.0,0.0001452,2]
[383865615,1757147458412,-151.0,0.0001452,2]
[383865616,1757147458426,-395.333293,0.0001452,2]
[383865617,1757147458440,-151.0,0.0001452,2]
[383865618,1757147458454,-151.0,0.0001452,2]
[383865619,1757147458468,-480.0,0.0001452,2]
[383865620,1757147458479,-151.0,0.0001452,2]
[383865621,1757147458489,-273.31819,0.0001452,2]
[383865622,1757147458500,-624.02,0.0001452,2]
[383865623,1757147458514,-151.0,0.0001452,2]
[383865624,1757147458528,-480.0,0.0001452,2]
[383865625,1757147458538,-151.0,0.0001452,2]
[383865626,1757147458549,-151.0,0.0001452,2]
[383865627,1757147458561,-480.0,0.0001452,2]
[383865628,1757147458575,-481.66237895,0.0001452,2]
[383865629,1757147458586,-480.0,0.0001452,2]
[383865630,1757147458596,-177.392045,0.0001452,2]
[383865631,1757147458609,-723.87,0.0001452,2]
[383865632,1757147458620,-480.0,0.0001452,2]
[383865633,1757147458632,-652.0,0.0001452,2]
[383865634,1757147458643,-151.0,0.0001452,2]
[383865635,1757147458655,-402.482389,0.0001452,2]
[383865636,1757147458666,-402.482389,0.0001452,2]
[383865637,1757147458678,-480.0,0.0001452,2]
[383865638,1757147458690,-402.482389,0.0001452,2]
[383865639,1757147458702,-546.81,0.0001452,2]
[383865640,1757147458714,-402.482389,0.0001452,2]
[383865641,1757147458726,-488.93365423,0.0001452,2]
[383865642,1757147458738,-480.0,0.0001452,2]
[383865643,1757147458751,-480.0,0.0001452,2]
[383865644,1757147458763,-151.0,0.0001452,2]
[383865645,1757147458775,-151.0,0.0001452,2]
[383865646,1757147458787,-480.0,0.0001452,2]
[383865647,1757147458798,-946.64,0.0001452,2]
[383865648,1757147458811,-480.0,0.0001452,2]
[383865649,1757147458823,-480.0,0.0001452,2]
[383865650,1757147458834,-154.843834,0.0001452,2]
[383865651,1757147458846,-480.0,0.0001452,2]
[383865652,1757147458858,-480.0,0.0001452,2]
[383865653,1757147458870,-151.0,0.0001452,2]
[383865654,1757147458881,-480.0,0.0001452,2]
[383865655,1757147458892,-480.0,0.0001452,2]
[383865656,1757147458904,-480.0,0.0001452,2]
[383865657,1757147458915,-480.0,0.0001452,2]
[383865658,1757147458927,-480.0,0.0001452,2]
[383865659,1757147458939,-480.0,0.0001452,2]
[383865660,1757147458950,-480.0,0.0001452,2]
[383865661,1757147458961,-151.0,0.0001452,2]
[383865662,1757147458972,-151.0,0.0001452,2]
[383865663,1757147458983,-480.0,0.0001452,2]
[383865664,1757147458996,-480.0,0.0001452,2]
[383865665,1757147459007,-343.67693632,0.0001452,2]
[383865666,1757147459019,-480.0,0.0001452,2]
[383865667,1757147459031,-480.0,0.0001452,2]
[383865668,1757147459043,-480.0,0.0001452,2]
[383865669,1757147459054,-151.0,0.0001452,2]
[383865670,1757147459066,-480.0,0.0001452,2]
[383865671,1757147459078,-560.27,0.0001452,2]
[383865672,1757147459090,-480.0,0.0001452,2]
[383865673,1757147459101,-480.0,0.0001452,2]
[383865674,1757147459113,-480.0,0.0001452,2]
[383865675,1757147459124,-581.16,0.0001452,2]
[383865676,1757147459135,-721.33,0.0001452,2]
[383865677,1757147459147,-480.0,0.0001452,2]
[383865678,1757147459159,-408.59163898,0.0001452,2]
[383865679,1757147459170,-480.0,0.0001452,2]
[383865680,1757147459182,-480.0,0.0001452,2]
[383865681,1757147459195,-759.91,0.0001452,2]
[383865682,1757147459208,-480.0,0.0001452,2]
[383865683,1757147459220,-480.0,0.0001452,2]
[383865684,1757147459231,-480.0,0.0001452,2]
[383865685,1757147459243,-480.0,0.0001452,2]
[383865686,1757147459255,-1707.48,0.0001452,2]
[383865687,1757147459266,-480.0,0.0001452,2]
[383865688,1757147459279,-480.0,0.0001452,2]
[383865689,1757147459291,-480.0,0.0001452,2]
[383865690,1757147459302,-480.0,0.0001452,2]
[383865691,1757147459313,-480.0,0.0001452,2]
[383865692,1757147459325,-480.0,0.0001452,2]
[383865693,1757147459337,-689.36,0.0001452,2]
[383865694,1757147459349,-851.74,0.0001452,2]
[383865695,1757147459361,-480.0,0.0001452,2]
[383865696,1757147459372,-480.0,0.0001452,2]
[383865697,1757147459384,-847.95,0.0001452,2]
[383865698,1757147459395,-480.0,0.0001452,2]
[383865699,1757147459407,-689.64,0.0001452,2]
[383865700,1757147459418,-901.03,0.0001452,2]
[383865701,1757147459430,-1143.02,0.0001452,2]
[383865702,1757147459441,-593.82,0.0001452,2]
[383865703,1757147459453,-550.95,0.0001452,2]
[383865704,1757147459465,-480.0,0.0001452,2]
[383865705,1757147459477,-480.0,0.0001452,2]
[383865706,1757147459488,-549.32,0.0001452,2]
[383865707,1757147459500,-480.0,0.0001452,2]
[383865708,1757147459512,-480.0,0.0001452,2]
[383865709,1757147459524,-480.0,0.0001452,2]
[383865710,1757147459536,-4490.14,0.0001452,2]
[383865711,1757147459549,-480.0,0.0001452,2]
[383865712,1757147459560,-480.0,0.0001452,2]
[383865713,1757147459572,-2293.57,0.0001452,2]
[383865714,1757147459584,-491.25713811,0.0001452,2]
[383865715,1757147459596,-480.0,0.0001452,2]
[383865716,1757147459607,-480.0,0.0001452,2]
[383865717,1757147459618,-151.0,0.0001452,2]
[383865718,1757147459630,-480.0,0.0001452,2]
[383865719,1757147459642,-480.0,0.0001452,2]
[383865720,1757147459654,-151.0,0.0001452,2]
[383865721,1757147459666,-1885.91,0.0001452,2]
[383865722,1757147459678,-480.0,0.0001452,2]
[383865723,1757147459688,-515.91,0.0001452,2]
[383865724,1757147459697,-151.0,0.0001452,2]
[383865725,1757147459899,-1956.11,0.0001452,2]
[383865726,1757147459913,-480.0,0.0001452,2]
[383865727,1757147459923,-480.0,0.0001452,2]
[383865728,1757147459934,-480.0,0.0001452,2]
[383865729,1757147459943,-151.0,0.0001452,2]
[383865730,1757147459954,-151.0,0.0001452,2]
[383865731,1757147459963,-844.54,0.0001452,2]
[383865732,1757147459972,-2632.35,0.0001452,2]
[383865733,1757147459982,-151.0,0.0001452,2]
[383865734,1757147459991,-480.0,0.0001452,2]
[383865735,1757147460001,-550.33,0.0001452,2]
[383865736,1757147460010,-231.256817,0.0001452,2]
[383865737,1757147460020,-380.25315538,0.0001452,2]
[383865738,1757147460029,-480.0,0.0001452,2]
[383865739,1757147460039,-480.0,0.0001452,2]
[383865740,1757147460049,-480.0,0.0001452,2]
[383865741,1757147460059,-480.0,0.0001452,2]
[383865742,1757147460068,-1990.88,0.0001452,2]
[383865743,1757147460077,-480.0,0.0001452,2]
[383865744,1757147460087,-480.0,0.0001452,2]
[383865745,1757147460097,-1913.46,0.0001452,2]
[383865746,1757147460106,-480.0,0.0001452,2]
[383865747,1757147460116,-578.72,0.0001452,2]
[383865748,1757147460126,-480.0,0.0001452,2]
[383865749,1757147460137,-480.0,0.0001452,2]
[383865750,1757147460149,-480.0,0.0001452,2]
[383865751,1757147460159,-18575.91,0.0001452,2]
[383865752,1757147460170,-1101.67,0.0001452,2]
[383865753,1757147460180,-508.99,0.0001452,2]
[383865754,1757147460190,-480.0,0.0001452,2]
[383865755,1757147460199,-480.0,0.0001452,2]
[383865756,1757147460209,-480.0,0.0001452,2]
[383865757,1757147460219,-480.0,0.0001452,2]
[383865758,1757147460228,-891.07,0.0001452,2]
[383865759,1757147460238,-480.0,0.0001452,2]
[383865760,1757147460247,-480.0,0.0001452,2]
[383865761,1757147460257,-705.71,0.0001452,2]
[383865762,1757147460266,-480.0,0.0001452,2]
[383865763,1757147460276,-480.0,0.0001452,2]
[383865764,1757147460286,-536.6,0.0001452,2]
[383865765,1757147460295,-549.62856115,0.0001452,2]
[383865766,1757147460305,-480.0,0.0001452,2]
[383865767,1757147460314,-2032.48,0.0001452,2]
[383865768,1757147460324,-1902.79,0.0001452,2]
[383865769,1757147460333,-483.24615572,0.0001452,2]
[383865770,1757147460343,-736.13,0.0001452,2]
[383865771,1757147460352,-281.36,0.0001452,2]
[383865772,1757147460361,-480.0,0.0001452,2]
[383865773,1757147460370,-480.0,0.0001452,2]
[383865774,1757147460379,-480.0,0.0001452,2]
[383865775,1757147460388,-550.06277103,0.0001452,2]
[383865776,1757147460397,-480.0,0.0001452,2]
[383865777,1757147460406,-480.0,0.0001452,2]
[383865778,1757147460416,-1683.86,0.0001452,2]
[383865779,1757147460425,-1314.45,0.0001452,2]
[383865780,1757147460435,-480.0,0.0001452,2]
[383865781,1757147460444,-480.0,0.0001452,2]
[383865782,1757147460453,-480.0,0.0001452,2]
[383865783,1757147460463,-566.47,0.0001452,2]
[383865784,1757147460472,-480.0,0.0001452,2]
[383865785,1757147460481,-480.0,0.0001452,2]
[383865786,1757147460490,-480.0,0.0001452,2]
[383865787,1757147460500,-1483.04,0.0001452,2]
[383865788,1757147460511,-526.11560716,0.0001452,2]
[383865789,1757147460522,-706.69,0.0001452,2]
[383865790,1757147460531,-483.69683165,0.0001452,2]
[383865791,1757147460542,-623.43,0.0001452,2]
[383865792,1757147460551,-480.0,0.0001452,2]
[383865793,1757147460560,-542.6,0.0001452,2]
[383865794,1757147460569,-2151.3,0.0001452,2]
[383865795,1757147460579,-480.0,0.0001452,2]
[383865796,1757147460588,-480.0,0.0001452,2]
[383865797,1757147460597,-480.0,0.0001452,2]
[383865798,1757147460607,-551.18,0.0001452,2]
[383865799,1757147460616,-480.0,0.0001452,2]
[383865800,1757147460625,-155.79499817,0.0001452,2]
[383865801,1757147460635,-9235.82,0.0001452,2]
[383865802,1757147460645,-627.12,0.0001452,2]
[383865803,1757147460654,-901.55,0.0001452,2]
[383865804,1757147460663,-6620.36,0.0001452,2]
[383865805,1757147460672,-489.15698194,0.0001452,2]
[383865806,1757147460681,-543.298905,0.0001452,2]
[383865807,1757147460690,-543.298905,0.0001452,2]
[383865808,1757147460700,-543.298905,0.0001452,2]
[383865809,1757147460709,-480.0,0.0001452,2]
[383865810,1757147460720,-480.0,0.0001452,2]
[383865811,1757147460729,-480.0,0.0001452,2]
[383865812,1757147460739,-480.0,0.0001452,2]
[383865813,1757147460748,-543.298909,0.0001452,2]
[383865814,1757147460760,-480.0,0.0001452,2]
[383865815,1757147460769,-480.0,0.0001452,2]
[383865816,1757147460778,-480.0,0.0001452,2]
[383865817,1757147460787,-151.0,0.0001452,2]
[383865818,1757147460796,-480.0,0.0001452,2]
[383865819,1757147460806,-480.0,0.0001452,2]
[383865820,1757147460815,-318.879953,0.0001452,2]
[383865821,1757147460824,-318.879953,0.0001452,2]
[383865822,1757147460835,-480.0,0.0001452,2]
[383865823,1757147460845,-743.595002,0.0001452,2]
[383865824,1757147460854,-318.879953,0.0001452,2]
[383865825,1757147460863,-151.0,0.0001452,2]
[383865826,1757147460873,-480.0,0.0001452,2]
[383865827,1757147460883,-743.595002,0.0001452,2]
[383865828,1757147460892,-318.879949,0.0001452,2]
[383865829,1757147460902,-151.0,0.0001452,2]
[383865830,1757147460912,-501.52711983,0.00014521,2]
[383865831,1757147460921,-1004.02424192,0.00014521,2]
[383865832,1757147460930,-1000.0,0.00014521,2]
[383865833,1757147460941,-1000.0,0.00014521,2]
[383865834,1757147460950,-1000.0,0.00014521,2]
[383865835,1757147460959,-447.97026484,0.00014521,2]
[383865836,1757147460968,-1000.87818574,0.00014521,2]
[383865837,1757147460977,-2101.14406137,0.00014532,2]
[383865838,1757147460987,-500.0,0.00014573,2]
[383865839,1757147460996,-500.0,0.00014573,2]
[383865840,1757147461005,-500.48255043,0.00014573,2]
[383865841,1757147461014,-500.0,0.00014573,2]
[383865842,1757147461024,-500.0,0.00014573,2]
[383865843,1757147461033,-500.0,0.00014573,2]
[383865844,1757147461043,-500.0,0.00014573,2]
[383865845,1757147461052,-1464.57869321,0.00014639,2]
[383865846,1757147461469,-480.0,0.00013698,2]
[383865847,1757147461478,-45.35981111,0.00013698,2]
[383865848,1757147462029,-105.64018889,0.00013698,2]
[383865849,1757147462039,-480.0,0.00013698,2]
[383865850,1757147462050,-295.53915245,0.00013698,2]
[383865851,1757147462062,-448.05584955,0.00013698,2]
[383865852,1757147462071,-480.0,0.00013698,2]
[383865853,1757147462080,-480.0,0.00013698,2]
[383865854,1757147462089,-480.0,0.00013698,2]
[383865855,1757147462098,-151.0,0.00013698,2]
[383865856,1757147462107,-484.73828302,0.00013698,2]
[383865857,1757147462117,-480.0,0.00013698,2]
[383865858,1757147462126,-483.92103037,0.00013698,2]
[383865859,1757147462134,-480.0,0.00013698,2]
[383865860,1757147462144,-480.0,0.00013698,2]
[383865861,1757147462153,-480.0,0.00013698,2]
[383865862,1757147462163,-743.595002,0.00013972,2]
[383865863,1757147462174,-178.13244272,0.00013972,2]
[383865864,1757147462195,-480.0,0.00013698,2]
[383865865,1757147462206,-301.86755728,0.00013972,2]
[383865866,1757147462216,-480.0,0.00013972,2]
[383865867,1757147462227,-85.12784211,0.00013972,2]
[383865868,1757147541744,300.0,0.00012997,2]
[383865869,1757147553015,5349.87141967,0.0001303,2]
[383865870,1757147553038,10000.01,0.0001303,2]
[383865871,1757147553075,10000.01,0.0001303,2]
[383865872,1757147553099,10000.01,0.0001303,2]
[383865873,1757147553122,10000.01,0.0001303,2]
[383865874,1757147553147,10000.01,0.0001303,2]
[383865875,1757147553171,10000.01,0.0001303,2]
[383865876,1757147553194,10000.01,0.0001303,2]
[383865877,1757147553218,10000.01,0.0001303,2]
[383865878,1757147553242,10000.01,0.0001303,2]
[383865879,1757147553275,274650.03858033,0.0001303,2]
[383865880,1757147567890,200.0,0.00012997,2]
[383865881,1757147576682,300.0,0.00012997,2]
[383865882,1757147587471,386.6,0.00012329,2]
[383865894,1757148119786,250.53683391,0.00013062,2]
[383865895,1757148128367,878.67,0.00012329,2]
[383865896,1757148143458,250.53683391,0.00013062,2]
[383865897,1757148166506,250.53683391,0.00013062,2]
[383865898,1757148189293,250.53683391,0.00013062,2]
[383865899,1757148197629,250.53683391,0.00013062,2]
[383865900,1757148412916,983.31645132,0.00013095,2]
[383865901,1757148421177,983.31645132,0.00013095,2]
[383865933,1757148545369,169.020211,0.00012612,2]
[383866131,1757148631949,-718.36894118,0.00013132,2]
[383866132,1757148631959,-983.31645132,0.00013204,2]
[383866133,1757148631968,-983.31645132,0.00013337,2]
[383866134,1757148631978,-300.0,0.00013399,2]
[383866135,1757148631988,-1200.0,0.00013399,2]
[383866136,1757148631998,-300.0,0.00013399,2]
[383866137,1757148632007,-300.0,0.00013399,2]
[383866138,1757148632017,-300.0,0.00013399,2]
[383866140,1757148632027,-300.0,0.00013399,2]
[383866141,1757148632036,-10000.0,0.000134,2]
[383866142,1757148632046,-1200.0,0.00013551,2]
[383866143,1757148632055,-17137.07310566,0.00013552,2]
[383866144,1757148632067,-500.0,0.00013552,2]
[383866145,1757148632078,-500.0,0.00013552,2]
[383866178,1757148637799,-177.55185843,0.00013416,2]
[383866179,1757148637809,-25121.59506558,0.00013552,2]
[383866180,1757148637818,-1256.11634636,0.00013573,2]